[Event "Czech Open Rapid G1 2024"]
[Site "Pardubice"]
[Date "2024.07.18"]
[Round "7.1"]
[White "Movsesian, Sergei"]
[Black "Abdulov, Orkhan"]
[Result "1-0"]
[Annotator "TA"]
[ECO "B30"]
[WhiteElo "2618"]
[BlackElo "2382"]
[PlyCount "75"]
[EventDate "2024.07.16"]
[EventType "swiss"]
[EventCountry "CZE"]
[SourceTitle "playchess.com"]
[Source "ChessBase"]
[SourceQuality "1"]
[TimeControl "1200+10"]

{[%evp 13,75,17,16,14,54,55,47,52,320,315,349,352,347,347,345,215,212,159,157,151,151,144,154,151,152,141,139,139,145,129,137,128,138,118,108,110,112,116,170,160,175,145,161,117,278,270,280,268,276,263,268,257,273,289,401,404,758,765,1818,1393,2779,2763,29986,29987]} 1. e4 {[%emt 0:00:01]} c5 {[%emt 0:00:01]} 2. Nc3 {[%emt 0:00:01]} Nc6 {[%emt 0:00:09]} 3. Nf3 {[%emt 0:00:06][%cal Bg1f3,Bf3g5,Bg5e4][%mdl 32]} Nf6 {[%emt 0:01:05][%cal Bg8f6,Bf6d5,Bd5c3][%mdl 32]} 4. Bb5 {[%emt 0:00:02]} Nd4 {[%emt 0:01:05]} 5. e5 {[%emt 0:00:01]} Nxb5 {[%emt 0:00:09]} 6. Nxb5 {[%emt 0:00:02]} Nd5 {[%emt 0:00:16]} 7. Ng5 {[%emt 0:00:01]} f6 {[%emt 0:05:49]} 8. Ne4 {[%emt 0:00:57]} a6 {[%emt 0:01:09]} 9. Nbc3 {[%emt 0:02:34]} Nxc3 {[%emt 0:00:52]} 10. dxc3 {[%emt 0:00:03] White is slightly better.} c4 $2 {[%emt 0:03:17][%mdl 8192]} (10... Qb6 $14) 11. exf6 $18 {[%emt 0:01:44]} exf6 {[%emt 0:00:24]} 12. Qh5+ {[%emt 0:00:02]} g6 {[%emt 0:00:15]} 13. Qd5 {[%emt 0:00:01][%cal Oe1g1]} Qe7 {[%emt 0:01:08]} 14. Bf4 {[%emt 0:02:09]} (14. Qxc4 $2 f5 15. O-O Qxe4 $19 (15... fxe4 16. Re1 $17)) 14... Qe6 {[%emt 0:01:59]} 15. Qxe6+ {[%emt 0:02:32]} dxe6 {[%emt 0:00:01] Black is weak on the dark squares} 16. Nxf6+ {[%emt 0:00:01]} Kf7 {[%emt 0:00:23]} 17. Ne4 {[%emt 0:01:10]} Be7 {[%emt 0:00:30]} 18. O-O-O {[%emt 0:00:16]} b5 {[%emt 0:00:07]} 19. Bg5 {[%emt 0:00:59] White has more active pieces.} Ra7 {[%emt 0:01:26][%cal Ba8a7,Ba7d7,Bd7d5][%mdl 32]} 20. h4 {[%emt 0:01:13]} h6 {[%emt 0:00:22]} 21. Bxe7 {[%emt 0:00:39]} Kxe7 {[%emt 0:00:01]} 22. Rde1 {[%emt 0:00:28]} Rd7 {[%emt 0:01:00]} 23. Rh3 {[%emt 0:00:18]} Rd5 {[%emt 0:00:10]} 24. Rhe3 {[%emt 0:00:29]} Rf8 {[%emt 0:00:11]} 25. g3 {[%emt 0:00:42]} e5 {[%emt 0:01:09] [#]} (25... g5 $16) 26. f3 $1 {[%emt 0:00:11]} Rfd8 {[%emt 0:00:21]} 27. b3 {[%emt 0:00:21]} Bf5 {[%emt 0:00:26]} 28. Nf2 {[%emt 0:00:34]} Bxc2 $2 {[%emt 0:00:43] [#]} 29. bxc4 $1 {[%emt 0:00:10]} ({Not} 29. Kxc2 Rd2+ 30. Kc1 cxb3 31. Rxe5+ Kf7 32. axb3 (32. Re7+ Kf8 $11) 32... Rxf2 $11) (29. Rxe5+ Rxe5 30. Rxe5+ Kd6 $16) 29... bxc4 {[%emt 0:00:04]} 30. Rxe5+ {[%emt 0:00:04]} (30. Kxc2 Rd2+ 31. Kc1 Rxf2 $11) 30... Rxe5 {[%emt 0:00:01]} 31. Rxe5+ $16 {[%emt 0:00:02][%mdl 4096] Endgame. KRB-KRN} Kd6 {[%emt 0:00:01]} 32. Ra5 {[%emt 0:00:19]} Bf5 {[%emt 0:00:21]} 33. Rxa6+ {[%emt 0:00:12]} Kc5 {[%emt 0:00:02]} 34. h5 {[%emt 0:00:48][%cal Bh4h5,Bh5g6][%mdl 32]} Rb8 {[%emt 0:00:27]} (34... Kd5 $142 35. a4 (35. hxg6 Rg8 $18) 35... Rg8 36. hxg6 Bxg6) 35. hxg6 $18 {[%emt 0:00:09] Hoping for Ra5+.} Rb1+ {[%emt 0:00:05]} 36. Kd2 {[%emt 0:00:02]} Rb2+ {[%emt 0:00:02]} 37. Ke3 {[%emt 0:00:03] And now Ra5+ would win.} Rc2 {[%emt 0:00:05]} 38. Ra5+ {[%emt 0:00:08] Weighted Error Value: White=0.12 (very precise) /Black=0.66.  Loses game:     	---       	Black=2      Mistake:       	---       	Black=2      Inaccurate:     	White=1     	Black=3      OK:         	White=11    	Black=5      Best:        	White=2     	Black=4      Strong:       	White=1     	---} 1-0

[Event "Czech Open Rapid G1 2024"]
[Site "Pardubice"]
[Date "2024.07.18"]
[Round "7.2"]
[White "Dobrowolski, Piotr"]
[Black "Kulon, Klaudia"]
[Result "0-1"]
[Annotator "TA"]
[ECO "C72"]
[WhiteElo "2412"]
[BlackElo "2380"]
[PlyCount "88"]
[EventDate "2024.07.16"]
[EventType "swiss"]
[EventCountry "CZE"]
[SourceTitle "playchess.com"]
[Source "ChessBase"]
[SourceQuality "1"]
[TimeControl "1200+10"]

{[%evp 29,88,-44,105,-57,-49,-58,-52,-107,-87,-120,-88,-100,0,-186,-210,-308,-341,-333,-336,-326,-345,-321,-316,-537,-264,-264,-272,-256,-270,-260,-269,-277,-277,-285,-287,-262,-264,-272,-276,-231,-213,-429,-413,-467,-489,-542,-536,-921,-1000,-955,-1093,-880,-779,-1533,-1000,-1678,-1864,-2512,-2284,-2392,-2344]} 1. e4 {[%emt 0:00:08]} e5 {[%emt 0:00:01]} 2. Nf3 {[%emt 0:00:06]} Nc6 {[%emt 0:00:02]} 3. Bb5 {[%emt 0:00:15]} a6 {[%emt 0:00:02]} 4. Ba4 {[%emt 0:00:08]} d6 {[%emt 0:00:04]} 5. O-O {[%emt 0:00:23]} Bd7 {[%emt 0:00:03]} 6. c4 {[%emt 0:00:09]} g6 {[%emt 0:00:06]} 7. d4 {[%emt 0:00:31]} Bg7 {[%emt 0:00:03]} 8. d5 {[%emt 0:01:32] C72: Ruy Lopez: Deferred Steinitz: 5 0-0.} Nce7 {[%emt 0:00:10]} 9. Nc3 {[%emt 0:00:12]} h6 {[%emt 0:00:11]} 10. Re1 {[%emt 0:00:47]} f5 {[%emt 0:00:19]} 11. c5 {[%emt 0:01:25]} Nf6 {[%emt 0:00:12]} 12. c6 $146 {[%emt 0:02:14]} ({Predecessor:} 12. Qb3 Rb8 13. Be3 Bxa4 14. Qxa4+ Qd7 15. Qb3 Nxe4 16. c6 Qc8 17. Ba7 Nxc3 18. bxc3 {1-0 Fedorchuk,S (2664)-Moussard,J (2475) Paris-ch 90th 2015 (2)}) 12... bxc6 {[%emt 0:00:21]} 13. dxc6 {[%emt 0:00:01]} Bxc6 {[%emt 0:01:46]} 14. exf5 {[%emt 0:07:09]} gxf5 {[%emt 0:00:10]} 15. Bb3 {[%emt 0:00:26]} Bd7 {[%emt 0:03:23]} (15... Rb8 $15 {keeps the upper hand.}) 16. Nh4 $2 {[%emt 0:02:40]} (16. Bf4 $1 $16 {[%cal Of3e5] Strongly threatening Nxe5!} Ng6 17. Bg3) 16... Rb8 $15 {[%emt 0:01:56]} 17. f4 {[%emt 0:00:55]} e4 {[%emt 0:00:26]} 18. Be3 {[%emt 0:00:02]} ({White should play} 18. Re3 $15) 18... Qc8 $17 {[%emt 0:01:12]} 19. Ba7 {[%emt 0:01:38]} Rb7 {[%emt 0:02:52]} 20. Bd4 {[%emt 0:00:03]} h5 {[%emt 0:00:01]} (20... Be6 $17 {aiming for ...0-0.} 21. Bxf6 Bxf6 22. Qh5+ Kd8) 21. Re3 $2 {[%emt 0:01:16]} (21. Rc1 $11) 21... c5 $19 {[%emt 0:01:16]} 22. Rg3 {[%emt 0:01:10]} (22. Bxf6 $142 Bxf6 23. Rxe4 fxe4 24. Nxe4 Bd4+ (24... Bxh4 25. Nxd6+ Kf8 26. Nxc8 $16) 25. Kh1) 22... cxd4 $19 {[%emt 0:00:55]} 23. Rxg7 {[%emt 0:00:02]} Qc5 $1 {[%emt 0:00:33]} (23... dxc3 24. Qxd6 $16) 24. Na4 {[%emt 0:00:06]} Bxa4 {[%emt 0:00:16]} 25. Bxa4+ {[%emt 0:00:01]} Kf8 {[%emt 0:00:02]} 26. Rxe7 $2 {[%emt 0:00:23]} (26. Rc1 {was the only defense.} Qa7 (26... Kxg7 $2 27. Rxc5 dxc5 28. Qc1 $19) 27. Rxe7 d3+ (27... Kxe7 28. Nxf5+ Kd8 29. Qd2 $11) 28. Kh1 Kxe7 (28... Rxe7 $2 29. Rc8+ Kg7 30. Nxf5+ Kh7 31. Nxe7 $19) 29. Ng6+ Kf7 30. Nxh8+ Kg7 31. Qe1) 26... Rxe7 {[%emt 0:00:24]} (26... Kxe7 27. Rc1 Qa7 28. Nxf5+ Kd8 29. Qd2 $15) (26... d3+ $142 27. Kh1 Kxe7 (27... Rxe7 $2 28. Rc1 $19) 28. Ng6+ Kf7 29. Nxh8+ Kg7) 27. Rc1 $19 {[%emt 0:00:04] [#]} Qa7 $1 {[%emt 0:00:20]} ({Avoid the trap} 27... Qd5 $2 28. Ng6+ (28. Bb3 Qb7 $16) 28... Kf7 29. Bb3 (29. Nxh8+ Kg7 $14) 29... Kxg6 30. Bxd5 Nxd5 31. Qxd4 $18) 28. Rc8+ {[%emt 0:00:10] [#]} (28. Nxf5 d3+ 29. Kh1 Rc7 $19) 28... Kg7 $1 {[%emt 0:00:20]} ({Worse is} 28... Ne8 29. Kh1 d3 30. Nxf5 $11) 29. Nxf5+ {[%emt 0:00:04]} Kh7 {[%emt 0:00:09]} 30. Rxh8+ {[%emt 0:00:56]} ({Don't play} 30. Nxe7 d3+ 31. Kh1 Rxc8 (31... Qxe7 $2 32. Rc3 $19) 32. Nxc8 Qc7 $19) 30... Kxh8 {[%emt 0:00:01]} 31. Qxd4 {[%emt 0:00:13]} Qxd4+ 32. Nxd4 {[%emt 0:00:02]} e3 {[%emt 0:00:44]} 33. Ne2 {[%emt 0:00:10]} d5 {[%emt 0:01:17]} 34. Bc2 {[%emt 0:00:17]} a5 {[%emt 0:00:18]} 35. h3 $2 {[%emt 0:00:08]} (35. Kf1 {was called for.}) 35... h4 $19 {[%emt 0:00:12]} 36. Kf1 {[%emt 0:00:07]} Rc7 {[%emt 0:00:40]} 37. Bd3 {[%emt 0:00:02]} Nh5 {[%emt 0:00:46]} 38. Bg6 {[%emt 0:00:05]} Ng3+ {[%emt 0:00:59]} 39. Nxg3 {[%emt 0:00:02]} hxg3 {[%emt 0:00:01]} 40. Ke2 {[%emt 0:00:01]} d4 {[%emt 0:00:01]} 41. Kd3 {[%emt 0:00:40]} Rc1 {[%emt 0:00:10]} 42. Bh5 {[%emt 0:00:01]} Rg1 {[%emt 0:00:29]} 43. Bf3 {[%emt 0:00:16]} Rf1 {[%emt 0:00:01]} 44. Bd5 {[%emt 0:00:17]} Rf2 {[%emt 0:00:10]} 0-1

[Event "Czech Open Rapid G1 2024"]
[Site "Pardubice"]
[Date "2024.07.18"]
[Round "7.3"]
[White "Pulpan, Jakub"]
[Black "Navara, David"]
[Result "1/2-1/2"]
[Annotator "TA"]
[ECO "A13"]
[WhiteElo "2383"]
[BlackElo "2682"]
[PlyCount "66"]
[EventDate "2024.07.16"]
[EventType "swiss"]
[EventCountry "CZE"]
[SourceTitle "playchess.com"]
[Source "ChessBase"]
[SourceQuality "1"]
[TimeControl "1200+10"]

{[%evp 14,66,10,15,15,0,-4,-6,-1,-13,0,-13,0,0,0,0,0,0,16,6,13,5,3,2,14,0,0,0,6,6,6,6,6,6,6,0,0,0,0,0,0,0,0,0,0,0,0,0,0,0,0,0,0,-2,-2]} 1. Nf3 {[%emt 0:00:11]} d5 {[%emt 0:00:26]} 2. e3 {[%emt 0:00:39]} Nf6 {[%emt 0:00:12]} 3. c4 {[%emt 0:00:11]} e6 {[%emt 0:00:03]} 4. b3 {[%emt 0:00:15]} c5 {[%emt 0:00:09]} 5. Bb2 {[%emt 0:00:25]} Nc6 {[%emt 0:00:04]} 6. cxd5 {[%emt 0:00:11]} exd5 {[%emt 0:00:02]} 7. Bb5 {[%emt 0:00:19]} Bd6 {[%emt 0:00:16]} 8. O-O {[%emt 0:00:28] Die Stellung ist ausgeglichen.} Bg4 {[%emt 0:00:21]} 9. d4 {[%emt 0:00:17]} cxd4 {[%emt 0:00:47]} 10. Bxd4 {[%emt 0:01:19]} O-O {[%emt 0:00:10]} 11. Bb2 {[%emt 0:01:11]} Ne4 {[%emt 0:02:48][%cal Od6e5]} 12. Be2 {[%emt 0:01:36]} Re8 {[%emt 0:01:45]} (12... Bxf3 {vereinfacht} 13. Bxf3 Be5 14. Bxe5 Nxe5 15. Bxe4 dxe4 16. Nc3 f5) 13. Nbd2 $1 {[%emt 0:02:57]} Rc8 {[%emt 0:03:52]} 14. Rc1 {[%emt 0:03:38]} a6 {[%emt 0:03:15]} 15. Nd4 {[%emt 0:03:08]} Bxe2 {[%emt 0:01:38]} 16. Qxe2 {[%emt 0:00:16]} Qh4 {[%emt 0:00:59][%csl Gd6][%cal Rh4h2] [#]} 17. g3 {[%emt 0:01:41]} Nxd4 {[%emt 0:00:45]} 18. Bxd4 {[%emt 0:00:07]} Qh3 {[%emt 0:00:14]} 19. Nxe4 {[%emt 0:00:49]} dxe4 {[%emt 0:00:03]} 20. Rfd1 {[%emt 0:00:45]} Ba3 {[%emt 0:00:46]} 21. Bb2 {[%emt 0:00:05]} Bxb2 {[%emt 0:00:35]} 22. Qxb2 {[%emt 0:00:12]} h5 {[%emt 0:00:03]} 23. Rxc8 {[%emt 0:00:34]} Rxc8 $11 {[%emt 0:00:02][%mdl 4096] Endspiel. KQR-KQR} 24. Qd4 {[%emt 0:00:20]} Qg4 $1 {[%emt 0:01:11]} 25. Qd7 {[%emt 0:00:16]} Rc2 {[%emt 0:01:05]} 26. Qxg4 {[%emt 0:00:29]} hxg4 {[%emt 0:00:02] KR-KR} 27. Rd8+ {[%emt 0:00:03]} Kh7 {[%emt 0:00:01][%cal Ob7b5]} 28. Rd6 {[%emt 0:00:20]} Rxa2 {[%emt 0:00:56]} 29. Rb6 {[%emt 0:00:02]} a5 {[%emt 0:00:26]} 30. Rxb7 {[%emt 0:00:01]} f5 {[%emt 0:00:02]} 31. b4 {[%emt 0:01:08]} a4 {[%emt 0:00:01]} 32. Ra7 {[%emt 0:00:11]} a3 {[%emt 0:00:04]} 33. b5 {[%emt 0:00:01]} Rb2 {[%emt 0:00:03] Eine ausgeglichene aber spannende Partie.   Gewichteter Fehlerwert: Weiß=0.02 (makellos) /Schwarz=0.03 (makellos) .  OK:         	Weiß=9     	Schwarz=9     Bester:       	Weiß=1     	Schwarz=1     Stark:        	Weiß=1     	Schwarz=1} 1/2-1/2

[Event "Czech Open Rapid G1 2024"]
[Site "Pardubice"]
[Date "2024.07.18"]
[Round "7.4"]
[White "Nisipeanu, Liviu-Dieter"]
[Black "Fishchuk, Vladyslav"]
[Result "1-0"]
[Annotator "TA"]
[ECO "B31"]
[WhiteElo "2583"]
[BlackElo "2234"]
[PlyCount "51"]
[EventDate "2024.07.16"]
[EventType "swiss"]
[EventCountry "CZE"]
[SourceTitle "playchess.com"]
[Source "ChessBase"]
[SourceQuality "1"]
[TimeControl "1200+10"]

{[%evp 11,51,4,0,0,0,0,8,9,3,-31,-24,-32,-12,-71,0,0,0,11,4,0,0,-47,-39,-91,85,78,225,223,207,209,263,234,343,325,315,266,273,272,546,544,543,537]} 1. e4 {[%emt 0:00:03]} c5 {[%emt 0:00:01]} 2. Nf3 {[%emt 0:00:02]} Nc6 {[%emt 0:00:02]} 3. Bb5 {[%emt 0:00:05]} g6 {[%emt 0:00:01]} 4. O-O {[%emt 0:00:07]} Bg7 {[%emt 0:00:02]} 5. Re1 {[%emt 0:00:09]} e5 {[%emt 0:00:01]} 6. b4 {[%emt 0:00:47]} Nxb4 {[%emt 0:00:04]} 7. c3 {[%emt 0:00:46]} Nc6 {[%emt 0:00:04]} 8. d4 {[%emt 0:00:01]} exd4 {[%emt 0:00:16]} 9. e5 {[%emt 0:00:01] The position is equal.} Nge7 {[%emt 0:00:25]} 10. cxd4 {[%emt 0:01:22]} cxd4 {[%emt 0:00:09]} 11. Ba3 {[%emt 0:00:30][%cal Ob1d2]} O-O {[%emt 0:00:08]} 12. Nbd2 {[%emt 0:00:01] [#]} (12. Bc4 $11) 12... d6 {[%emt 0:02:14]} 13. Bxd6 $11 {[%emt 0:01:13]} Re8 {[%emt 0:00:05]} 14. Ne4 {[%emt 0:00:18][%cal Ob5c4]} Nf5 {[%emt 0:00:09]} 15. Bxc6 {[%emt 0:00:35]} bxc6 {[%emt 0:00:03]} 16. Nxd4 {[%emt 0:00:02]} (16. h3 $11) 16... Nxd6 $15 {[%emt 0:03:03]} (16... Bxe5 17. Nxc6 Bxd6 18. Nxd8 $18) 17. Nxc6 {[%emt 0:02:54]} (17. exd6 $15 Bd7 (17... Qb6 $2 18. Nf6+ Bxf6 19. Rxe8+ Kg7 20. Rb1 $18) 18. Rc1) 17... Qb6 $2 {[%emt 0:00:41]} (17... Qd7 $17 {stays on course.} 18. exd6 (18. Qxd6 Re6 $17) 18... Qxc6) 18. Qxd6 $16 {[%emt 0:00:18] Rab1 would now be deadly. White is more active.} (18. Nxd6 $2 Qxc6 19. Rc1 Qd7 $19) 18... Bb7 {[%emt 0:01:32] Loses the game.} (18... Bf8 $16 19. Nf6+ Kh8) 19. Ne7+ $18 {[%emt 0:00:33] A dynamic duo of knights.} Kh8 {[%emt 0:00:01] [#] White must now prevent ...Bxe4.} 20. Ng5 {[%emt 0:00:09][%cal Rg5f7]} Bf8 {[%emt 0:01:01]} 21. Rab1 {[%emt 0:03:08]} Qxd6 {[%emt 0:01:21]} (21... Bxe7 $142 22. Nxf7+ (22. Qxb6 $2 {loses.} axb6 23. Nxf7+ Kg8 $19) 22... Kg8 23. Rxb6 (23. Qxb6 $2 axb6 24. Rxb6 Bxg2 $19) 23... Bxd6 24. Rxb7 Bf8) 22. exd6 {[%emt 0:00:02][%cal Be5d6,Bd6d7][%mdl 32]} ({But not} 22. Nxf7+ Kg7 23. exd6 (23. Nxd6 Rxe7 24. Rxb7 Rxb7 $18) 23... Be4 24. Rxe4 Kxf7 $18) 22... Bxe7 {[%emt 0:00:06]} 23. Rxe7 {[%emt 0:00:37]} ({Not} 23. dxe7 Bd5 $16) 23... Bd5 {[%emt 0:00:29]} 24. Nxf7+ {[%emt 0:00:11]} Kg7 $2 {[%emt 0:00:01]} (24... Bxf7 25. Rxf7 Rad8 26. Rxa7 Rxd6) 25. Rxe8 {[%emt 0:00:28]} Rxe8 {[%emt 0:00:10]} 26. d7 {[%emt 0:00:01] Weighted Error Value: White=0.18 (very precise) /Black=0.57.  Mistake:       	White=3     	Black=5      Inaccurate:     	White=1     	---        OK:         	White=5     	Black=6      Best:        	White=5     	Black=3} 1-0

[Event "Czech Open Rapid G1 2024"]
[Site "Pardubice"]
[Date "2024.07.18"]
[Round "7.5"]
[White "Johansson, Linus"]
[Black "Burdalev, Kirill"]
[Result "1/2-1/2"]
[Annotator "TA"]
[ECO "D31"]
[WhiteElo "2451"]
[BlackElo "2348"]
[PlyCount "91"]
[EventDate "2024.07.16"]
[EventType "swiss"]
[EventCountry "CZE"]
[SourceTitle "playchess.com"]
[Source "ChessBase"]
[SourceQuality "1"]
[TimeControl "1200+10"]

{[%evp 9,91,18,25,11,10,3,16,10,16,15,19,17,9,12,29,26,35,33,31,24,42,32,89,85,100,34,64,55,79,70,77,74,112,70,76,73,67,64,66,23,13,10,16,0,0,0,0,0,0,0,0,0,0,0,0,-9,0,0,0,0,0,0,0,0,0,0,0,0,0,0,0,0,0,0,0,0,0,0,0,0,0,0,0,0]} 1. d4 {[%emt 0:06:45]} d5 {[%emt 0:00:01]} 2. c4 {[%emt 0:00:01]} e6 {[%emt 0:00:01]} 3. Nc3 {[%emt 0:00:00][%cal Bb1c3,Bc3d5,Bd5f4][%mdl 32]} a6 {[%emt 0:00:00]} 4. cxd5 {[%emt 0:00:05]} exd5 {[%emt 0:00:01]} 5. Qb3 {[%emt 0:00:01]} c5 {[%emt 0:00:07]} 6. Qxd5 {[%emt 0:00:13]} cxd4 {[%emt 0:00:09]} 7. Qxd8+ {[%emt 0:00:00]} Kxd8 {[%emt 0:00:01]} 8. Nd5 {[%emt 0:00:00]} Be6 {[%emt 0:00:49]} 9. Nf4 {[%emt 0:00:10]} Bb4+ {[%emt 0:00:04]} 10. Bd2 {[%emt 0:00:02]} Bxd2+ {[%emt 0:00:15]} 11. Kxd2 {[%emt 0:00:02]} Ke7 {[%emt 0:01:08]} 12. g3 {[%emt 0:00:08]} (12. Nxe6 {vereinfacht} fxe6 13. g3 Nf6 14. Bg2) 12... Nc6 {[%emt 0:01:30]} 13. Bg2 {[%emt 0:00:01]} (13. Nxe6 {vereinfacht} fxe6 14. Bg2 Rc8 15. Nh3) 13... Nf6 {[%emt 0:00:10]} 14. Ngh3 {[%emt 0:00:35][%cal Bg1h3,Bh3g5,Bg5f3][%mdl 32]} (14. Nxe6 {vereinfacht} fxe6 15. Rc1 Rac8 16. Nh3) 14... Bd7 {[%emt 0:02:09]} (14... Bf5 {vereinfacht} 15. Rhc1 Rac8 16. Bxc6 Rxc6 17. f3 Bxh3 18. Nxh3 Nd5) 15. Nd3 {[%emt 0:00:20]} Kd6 {[%emt 0:00:32]} (15... Nd8 $14) 16. Ng5 $16 {[%emt 0:00:15]} Rhf8 {[%emt 0:00:08]} 17. h4 {[%emt 0:00:19] Weiß steht aktiver.} (17. Rhc1 $16) 17... Rae8 {[%emt 0:00:10]} 18. Rhd1 {[%emt 0:01:14]} h6 {[%emt 0:00:11] [#]} 19. Nf3 {[%emt 0:00:01]} Re7 {[%emt 0:00:30]} 20. Ke1 {[%emt 0:00:42]} Rfe8 {[%emt 0:00:05]} 21. Nf4 {[%emt 0:00:02][%cal Oa1c1]} Kc7 {[%emt 0:01:34]} 22. Rac1 {[%emt 0:00:44]} ({Viel schlechter ist} 22. Nxd4 Nxd4 23. Rxd4 g5 24. Rc1+ Kb8 $11) 22... Kb8 {[%emt 0:00:26]} 23. Kf1 {[%emt 0:01:03]} ({Ein No Go ist} 23. Nxd4 Nxd4 24. Rxd4 g5 $11) 23... Bg4 {[%emt 0:00:42]} 24. Nxd4 {[%emt 0:02:54]} Nxd4 {[%emt 0:00:02]} 25. Rxd4 {[%emt 0:00:01] Die Stellung ist ausgeglichen.} g5 {[%emt 0:00:33] Verhindert e3.} 26. hxg5 {[%emt 0:03:15]} hxg5 {[%emt 0:00:02]} 27. Nd5 {[%emt 0:00:17]} Bxe2+ {[%emt 0:01:21]} 28. Kg1 {[%emt 0:00:01]} Nxd5 {[%emt 0:00:36]} 29. Rxd5 {[%emt 0:00:04]} f6 {[%emt 0:00:40]} 30. a4 {[%emt 0:01:14]} Bg4 {[%emt 0:00:31]} 31. Rd4 {[%emt 0:00:59]} Bf5 {[%emt 0:02:36]} 32. Rb4 {[%emt 0:00:22]} Be4 {[%emt 0:00:14]} 33. Re1 {[%emt 0:00:39]} Bxg2 {[%emt 0:00:05]} 34. Rxe7 {[%emt 0:00:01]} Rxe7 {[%emt 0:00:08]} 35. Kxg2 $11 {[%emt 0:00:01][%mdl 4096] Endspiel. KR-KR} Kc7 {[%emt 0:00:24]} 36. Kf3 {[%emt 0:00:13]} f5 {[%emt 0:01:12]} 37. g4 {[%emt 0:00:28]} Re5 {[%emt 0:00:31]} 38. b3 {[%emt 0:00:39]} b5 {[%emt 0:00:22]} 39. axb5 {[%emt 0:00:03]} axb5 {[%emt 0:00:00]} 40. Rd4 {[%emt 0:00:03]} f4 {[%emt 0:00:29]} 41. b4 {[%emt 0:00:09]} Kc6 {[%emt 0:00:04]} 42. Rd8 {[%emt 0:00:13]} Kc7 {[%emt 0:00:11]} 43. Rd1 {[%emt 0:01:07]} Kc6 {[%emt 0:00:02]} 44. Rd2 {[%emt 0:00:05]} Kc7 {[%emt 0:00:06]} 45. Rd3 {[%emt 0:00:22]} Kc6 {[%emt 0:00:01]} 46. Rd1 {[%emt 0:00:02] Gewichteter Fehlerwert: Weiß=0.08 (makellos) /Schwarz=0.07 (makellos) .  Fehler:       	Weiß=1     	Schwarz=1     Ungenau:       	Weiß=2     	Schwarz=2     OK:         	Weiß=18    	Schwarz=19    Bester:       	Weiß=2     	Schwarz=3} 1/2-1/2